bitfinex/quotes_ETHUSD_20250322
["timestamp","ask_amount","ask_price","bid_price","bid_amount"]
[1742686655171,5.05254,1979.2,1978.8,6.82040829]
[1742686655379,5.8309,1979.3,1978.9,5.0533]
[1742686655784,10.8833,1979.3,1978.8,6.82040829]
[1742686655983,5.8309,1979.3,1978.8,11.87378829]
[1742686656221,5.8309,1979.3,1978.9,5.05321]
[1742686656711,10.88335,1979.3,1978.9,5.05321]
[1742686657003,10.88336,1979.3,1978.9,5.05321]
[1742686657307,5.05343,1978.9,1978.6,26.727]
[1742686657605,0.7786,1978.8,1978.6,26.727]
[1742686657767,5.83221,1978.8,1978.6,26.727]
[1742686660609,5.83155,1979.1,1978.7,5.0537]
[1742686661484,0.7786,1979.1,1978.7,5.0537]
[1742686661701,0.7786,1979.1,1978.6,31.78107]
[1742686661903,0.7786,1979.1,1978.6,35.39122183]
[1742686662405,5.8315,1979.1,1978.7,5.05369]
[1742686662605,5.8315,1979.1,1978.7,10.1073]
[1742686662926,5.8315,1979.1,1978.7,5.05361]
[1742686667032,5.8315,1979.1,1978.8,26.72]
[1742686669543,5.05324,1979.0,1978.8,26.72]
[1742686669699,0.8057,1978.9,1978.8,26.72]
[1742686669904,5.85901,1978.9,1978.8,26.72]
[1742686670803,0.8057,1978.9,1978.8,26.72]
[1742686675364,5.8516,1979.1,1978.8,26.72]
[1742686676277,6.942017,1979.1,1978.8,26.72]
[1742686679460,0.7988,1979.1,1978.8,31.77349]
[1742686681062,5.05331,1978.9,1978.8,26.72]
[1742686681241,10.15195827,1978.9,1978.8,26.72]
[1742686686160,5.05407,1978.6,1978.4,26.72]
[1742686687244,5.05386,1978.7,1978.4,26.72]
[1742686687769,10.10792,1978.7,1978.4,26.72]
[1742686688466,5.05409,1978.6,1978.4,26.72]
[1742686688841,5.05386,1978.7,1978.4,26.72]
[1742686689147,10.10737,1978.8,1978.4,31.77456]
[1742686689538,5.05385,1978.7,1978.4,26.72]
[1742686690284,5.05385,1978.7,1978.4,31.77458]
[1742686693574,5.05385,1978.7,1978.4,26.72]
[1742686693875,9.37443827,1978.7,1978.4,26.72]
[1742686694041,5.99167383,1978.6,1978.2,5.05508]
[1742686694374,5.99167383,1978.6,1978.3,26.722]
[1742686694375,5.81006,1978.5,1978.3,26.722]
[1742686694571,5.05458,1978.4,1978.3,26.722]
[1742686695948,10.13072827,1978.4,1978.3,26.722]
[1742686696945,5.81028,1978.4,1978.3,26.722]
[1742686697147,5.0544,1978.5,1978.3,26.722]
[1742686697759,5.05458,1978.4,1978.3,26.722]
[1742686699670,5.05439,1978.5,1978.3,26.722]
[1742686700183,5.05458,1978.4,1978.3,26.722]
[1742686701586,6.065477,1978.4,1978.3,26.722]
[1742686702260,10.38592527,1978.4,1978.3,26.722]
[1742686705754,5.05458,1978.4,1978.3,26.722]
[1742686706361,5.05439,1978.5,1978.3,26.722]
[1742686706524,5.0541,1978.6,1978.3,31.77665]
[1742686707022,3.0,1978.7,1978.4,5.05446]
[1742686707327,13.10799,1978.7,1978.3,31.77665]
[1742686707727,5.05413,1978.6,1978.3,31.77665]
[1742686708409,8.05397,1978.7,1978.3,34.980765]
[1742686708579,12.8838131,1978.9,1978.3,29.926115]
[1742686708780,14.42746827,1978.9,1978.5,5.05423]
[1742686709003,5.0535,1978.9,1978.6,5.05398]
[1742686710407,5.0535,1978.9,1978.5,5.31875]
[1742686710903,5.0535,1978.9,1978.5,10.37293]
[1742686711105,5.0535,1978.9,1978.5,11.410223]
[1742686711808,5.05359,1978.8,1978.5,6.355973]
[1742686713132,5.05337,1978.9,1978.5,6.355973]
[1742686713429,5.05337,1978.9,1978.5,6.355943]
[1742686713933,10.10688,1978.9,1978.5,6.355943]
[1742686714128,10.1068,1978.9,1978.5,5.31865]
[1742686714335,5.05337,1978.9,1978.5,5.31865]
[1742686714518,5.05333,1978.9,1978.5,0.2645]
[1742686714723,5.05333,1978.9,1978.5,5.31878]
[1742686714931,5.05333,1978.9,1978.5,5.31871]
[1742686715094,5.05333,1978.9,1978.5,5.850581]
[1742686716543,5.05333,1978.9,1978.5,5.850621]
[1742686719035,5.05333,1978.9,1978.5,10.904791]
[1742686719238,5.05333,1978.9,1978.5,10.904731]
[1742686719745,10.10687,1978.9,1978.5,5.850541]
[1742686719925,10.10687,1978.9,1978.5,5.31867]
[1742686721236,10.10687,1978.9,1978.6,26.723]
[1742686721547,10.10675,1978.9,1978.6,26.723]
[1742686721748,5.05333,1978.9,1978.6,26.723]
[1742686722855,5.0536,1978.8,1978.6,26.723]
[1742686730647,5.87462,1978.7,1978.6,26.723]
[1742686733055,5.05361,1978.8,1978.6,26.723]
[1742686735542,5.05361,1978.8,1978.7,26.722]
[1742686747289,5.87388,1979.0,1978.7,26.722]
[1742686747499,10.10692,1978.9,1978.7,26.722]
[1742686747791,5.05356,1978.8,1978.7,26.722]
[1742686750595,5.88036,1978.8,1978.7,26.722]
[1742686753023,5.05356,1978.8,1978.7,26.722]
[1742686759621,5.05396,1978.7,1978.5,26.723]
[1742686760300,5.05407,1978.6,1978.5,26.723]
[1742686760927,5.87637,1978.6,1978.5,26.723]
[1742686766450,5.05407,1978.6,1978.5,26.723]
[1742686767098,7.64872877,1978.6,1978.5,26.723]
[1742686767933,0.7654,1978.8,1978.5,31.77723]
[1742686768141,8.41378877,1978.8,1978.5,29.900723]
[1742686768435,13.46759877,1978.8,1978.5,29.900723]
[1742686768790,5.05383,1978.7,1978.5,29.900723]
[1742686768993,7.64848877,1978.7,1978.5,29.900723]
[1742686770103,5.05383,1978.7,1978.5,29.900723]
[1742686770609,8.41378877,1978.8,1978.5,29.900723]
[1742686771596,7.64838877,1978.8,1978.5,30.165223]
[1742686773699,7.64796877,1978.9,1978.5,35.219543]
[1742686773905,7.64796877,1978.9,1978.6,2.70475112]
[1742686774405,6.25416399,1979.2,1978.6,2.70475112]
[1742686774607,0.8233,1979.4,1979.0,2.85915877]
[1742686774917,2.59465877,1979.5,1979.0,2.85915877]
[1742686774918,7.64659877,1979.5,1979.0,0.2645]
[1742686775305,5.05212,1979.4,1979.0,5.31739]
[1742686775808,7.64677877,1979.4,1979.0,5.31739]
[1742686776224,7.64677877,1979.4,1979.0,10.37026]
[1742686776545,5.05212,1979.4,1979.1,1.037026]
[1742686780650,5.05194,1979.5,1979.1,6.089796]
[1742686781159,10.10397,1979.5,1979.1,6.089796]
[1742686781482,5.05194,1979.5,1979.1,6.089796]
[1742686781812,5.14405396,1979.6,1978.8,5.31795]
[1742686781813,5.05254,1979.2,1978.8,5.31795]
[1742686782160,5.05254,1979.2,1978.8,10.37133]
[1742686782447,5.05254,1979.2,1978.8,5.31788]
[1742686785241,0.7547,1979.3,1978.9,5.05322]
[1742686785440,5.05204,1979.4,1979.0,5.558262]
[1742686785633,5.80674,1979.4,1979.0,5.558262]
[1742686785942,5.05191,1979.5,1979.1,5.05256]
[1742686786145,9.37266396,1979.5,1979.1,5.05256]
[1742686786342,5.05227,1979.4,1979.0,5.05287]
[1742686786645,5.0523,1979.3,1979.0,5.05287]
[1742686786844,5.0523,1979.3,1978.9,5.31773]
[1742686788155,5.0523,1979.3,1978.9,10.37089]
[1742686788565,5.05211,1979.4,1979.0,5.05297]
[1742686790165,5.05211,1979.4,1979.1,26.715]
[1742686790884,5.05211,1979.4,1979.1,31.76776]
[1742686791029,9.37259396,1979.5,1979.1,31.76776]
[1742686791234,9.37259396,1979.5,1979.1,39.72763789]
[1742686792731,4.32075396,1979.5,1979.2,5.05244]
[1742686794544,9.37264396,1979.5,1979.1,34.93943789]
[1742686794873,3.37973434,1979.9,1979.1,29.62224789]
[1742686794874,9.37307396,1979.3,1979.1,29.62224789]
[1742686796384,9.37307396,1979.3,1979.2,2.70475112]
[1742686797340,9.37307396,1979.3,1979.1,26.715]
[1742686803189,4.32075396,1979.3,1979.1,26.715]
[1742686803683,5.05179,1979.5,1979.1,26.715]
[1742686803684,0.7835,1979.8,1979.6,5.05144]
[1742686803860,5.8341,1980.0,1979.7,0.505144]
[1742686804268,5.8341,1980.0,1979.6,5.05135]
[1742686805069,3.7835,1980.0,1979.7,5.05117]
[1742686806383,8.83412,1980.0,1979.6,5.05135]
[1742686807178,3.7835,1980.0,1979.5,0.2645]
[1742686807371,3.7835,1980.0,1979.7,5.05114]
[1742686807683,3.0,1980.0,1979.7,5.05114]
[1742686807849,3.0,1980.0,1979.7,6.061406]
[1742686809879,8.05055,1980.0,1979.7,6.061406]
[1742686810083,8.05055,1980.0,1979.7,1.010266]
[1742686811084,8.05055,1980.0,1979.8,26.711]
[1742686813289,9.37102396,1980.1,1979.8,26.711]
[1742686813484,5.05057,1980.0,1979.8,26.711]
[1742686813780,5.05057,1980.0,1979.8,29.9882296]
[1742686814484,3.7775,1980.2,1979.8,29.9882296]
[1742686814653,5.05026,1980.1,1979.8,35.0392296]
[1742686815973,5.8277,1980.2,1979.8,35.0392296]
[1742686816483,10.87787,1980.2,1979.8,35.0392296]
[1742686816673,10.87787,1980.2,1979.9,1.32450341]
[1742686817073,5.82767,1980.2,1979.9,1.32450341]
[1742686817491,10.87784,1980.2,1979.9,1.32450341]
[1742686818191,5.05017,1980.2,1979.9,1.32450341]
[1742686818378,10.10035,1980.2,1979.9,1.32450341]
[1742686818776,4.32075396,1980.3,1979.9,1.32450341]
[1742686819007,10.8567,1980.4,1980.0,5.05028]
[1742686819291,5.04957,1980.4,1980.1,0.769528]
[1742686819786,5.04957,1980.4,1980.1,5.819768]
[1742686820691,5.04957,1980.4,1980.1,0.769528]
[1742686821511,10.09927,1980.4,1980.1,0.769528]
[1742686821691,5.04975,1980.3,1980.1,0.505028]
[1742686821885,5.04975,1980.3,1979.9,6.63975341]
[1742686822995,5.05009,1980.2,1979.9,1.32450341]
[1742686823195,5.80715,1980.3,1979.9,1.32450341]
[1742686823363,10.85707,1980.3,1979.9,6.37523341]
[1742686823565,10.85707,1980.3,1980.0,0.63752334]
[1742686823764,5.05004,1980.2,1980.0,0.63752334]
[1742686823998,5.05004,1980.2,1979.9,1.32450341]
[1742686826534,10.10022,1980.2,1979.9,1.32450341]
[1742686827613,5.05025,1980.1,1979.9,1.32450341]
[1742686831219,5.05025,1980.1,1979.8,29.9882296]
[1742686831424,0.20373356,1980.0,1979.8,29.9882296]
[1742686832801,5.05025,1980.1,1979.8,29.9882296]
[1742686833122,0.21116254,1980.0,1979.8,29.9882296]
[1742686833285,5.05025,1980.1,1979.8,29.9882296]
[1742686833488,0.21116254,1979.9,1979.8,29.9882296]
[1742686833687,5.05025,1980.1,1979.8,29.9882296]
[1742686833881,0.21116254,1979.9,1979.8,35.0392396]
[1742686834087,5.05025,1980.1,1979.8,35.0392396]
[1742686834287,5.05025,1980.1,1979.9,2.60524452]
[1742686834518,5.05004,1980.2,1979.9,2.60524452]
[1742686834721,0.21116254,1980.0,1979.9,2.60524452]
[1742686834887,5.05004,1980.2,1979.9,2.60524452]
[1742686835087,0.21128978,1980.0,1979.9,2.60524452]
[1742686835402,5.05004,1980.2,1979.9,2.60524452]
[1742686835917,0.2117563,1980.1,1980.0,0.26052445]
[1742686836127,5.04995,1980.3,1980.0,0.52502445]
[1742686836301,0.2117563,1980.1,1980.0,0.52502445]
[1742686836499,5.04995,1980.3,1980.0,27.22902445]
[1742686836807,0.2117563,1980.1,1980.0,32.27950445]
[1742686837402,5.04957,1980.4,1980.0,32.27950445]
[1742686837600,0.2117563,1980.1,1980.0,32.27950445]
[1742686837792,5.04957,1980.4,1980.0,32.27950445]
[1742686837994,0.2117563,1980.1,1980.0,32.27950445]
[1742686838221,5.04957,1980.4,1980.0,32.27950445]
[1742686838728,0.2117563,1980.3,1980.0,32.27950445]
[1742686838900,8.84265,1980.5,1980.1,8.27795045]
[1742686839093,0.2117563,1980.2,1980.1,8.27795045]
[1742686839291,13.89204,1980.5,1980.1,8.27795045]
[1742686839619,0.2117563,1980.2,1980.1,8.27795045]
[1742686840225,5.0495,1980.4,1980.1,8.27795045]
[1742686840422,0.21264689,1980.2,1980.1,8.27795045]
[1742686840625,5.0495,1980.4,1980.1,8.27795045]
[1742686841121,5.26255689,1980.3,1980.1,3.22795045]
[1742686841436,5.26255689,1980.3,1980.0,26.704]
[1742686842238,5.05003,1980.2,1980.0,26.704]
[1742686842593,5.0498,1980.3,1980.0,26.704]
[1742686842799,0.21264689,1980.1,1980.0,29.879455]
[1742686844242,5.05,1980.2,1980.0,29.879455]
[1742686844545,0.21264689,1980.1,1980.0,29.879455]
[1742686844949,5.05,1980.2,1980.0,29.879455]
[1742686845102,0.21264689,1980.1,1980.0,29.879455]
[1742686845445,5.05,1980.2,1980.0,29.879455]
[1742686845627,0.21264689,1980.1,1980.0,29.879455]
[1742686845812,5.05,1980.2,1980.0,29.879455]
[1742686846011,0.21264689,1980.1,1980.0,29.879455]
[1742686846222,5.05,1980.2,1980.0,29.879455]
[1742686846725,0.21264689,1980.1,1980.0,31.7545]
[1742686847103,5.04957,1980.4,1980.0,31.7545]
[1742686847305,0.21264689,1980.1,1980.0,31.7545]
[1742686847520,5.04957,1980.4,1980.0,31.75438]
[1742686847727,0.21264689,1980.1,1980.0,32.01888]
[1742686847947,0.21264689,1980.1,1980.0,35.725834]
[1742686848162,5.04957,1980.4,1980.0,35.725834]
[1742686848661,0.21264689,1980.3,1980.0,35.725834]
[1742686848957,5.04957,1980.4,1980.0,40.776174]
[1742686849159,0.21264689,1980.2,1980.0,40.776174]
[1742686849460,10.09923,1980.4,1980.1,2.17552012]
[1742686849631,0.21264689,1980.3,1980.1,2.17552012]
[1742686849822,10.09923,1980.4,1980.1,2.17552012]
[1742686850022,0.21264689,1980.3,1980.1,2.17552012]
[1742686850262,9.37032396,1980.4,1980.1,2.17552012]
[1742686850423,0.21264689,1980.3,1980.1,2.17552012]
[1742686850849,9.37032396,1980.4,1980.2,26.703]
[1742686851159,0.21264689,1980.3,1980.2,26.703]
[1742686851842,9.37032396,1980.4,1980.2,26.703]
[1742686852038,0.21264689,1980.3,1980.2,26.703]
[1742686852243,9.37032396,1980.4,1980.2,26.703]
[1742686852445,5.26237689,1980.3,1980.2,26.703]
[1742686858664,0.21264689,1980.3,1980.2,26.703]
[1742686858850,9.37032396,1980.4,1980.2,26.703]
[1742686859047,0.21290131,1980.3,1980.2,26.703]
[1742686859223,7.63956535,1980.4,1980.2,26.703]
[1742686859425,0.21290131,1980.3,1980.2,26.703]
[1742686859765,5.04957,1980.4,1980.2,26.703]
[1742686859933,0.19629306,1980.3,1980.2,31.75299]
[1742686860263,5.04876,1980.7,1980.3,5.04959]
[1742686860465,0.18134218,1980.6,1980.3,10.09918]
[1742686860664,0.18134218,1980.6,1980.4,5.04945]
[1742686860971,0.18134218,1980.6,1980.5,0.2645]
[1742686861326,5.04853,1980.8,1980.5,0.2645]
[1742686861527,0.18202037,1980.6,1980.5,0.795879]
[1742686861766,10.0972,1980.8,1980.5,0.795879]
[1742686861966,0.18202037,1980.6,1980.5,0.795879]
[1742686862142,5.04853,1980.8,1980.5,0.795879]
[1742686862625,0.18202037,1980.7,1980.5,0.795879]
[1742686864484,0.18202037,1980.7,1980.6,5.04897]
[1742686864653,0.18202037,1980.7,1980.6,5.6334549]
[1742686864983,5.80978,1981.0,1980.6,5.6334549]
[1742686865197,0.18282559,1980.7,1980.6,5.6334549]
[1742686865368,5.04779,1981.1,1980.7,5.04849]
[1742686865569,5.04779,1981.1,1980.8,0.504849]
[1742686865755,0.18282559,1981.0,1980.8,0.504849]
[1742686869974,0.18282559,1981.0,1980.9,26.697]
[1742686873719,5.23077559,1981.0,1980.9,26.697]
[1742686874809,0.18282559,1981.0,1980.9,26.697]
[1742686880732,4.49755825,1981.0,1980.9,26.697]
[1742686880891,0.18282559,1981.0,1980.9,26.697]
[1742686881233,2.77117692,1981.0,1980.9,26.697]
[1742686882485,7.81912692,1981.0,1980.9,26.697]
[1742686884432,5.23077559,1981.0,1980.9,26.697]
[1742686885633,0.18282559,1981.0,1980.9,26.697]
[1742686888536,2.77117692,1981.0,1980.9,26.697]
[1742686891939,0.18282559,1981.0,1980.9,26.697]
[1742686892737,2.77117692,1981.0,1980.9,26.697]
[1742686893635,0.18282559,1981.0,1980.9,26.697]
[1742686893933,2.77117692,1981.0,1980.9,26.697]
[1742686894132,0.18282559,1981.0,1980.9,26.697]
[1742686894732,2.77117692,1981.0,1980.9,26.697]
[1742686896537,7.81912692,1981.0,1980.9,26.697]
[1742686899735,2.77117692,1981.0,1980.9,26.697]
[1742686915062,0.18282559,1981.0,1980.9,31.74521]
[1742686915227,0.18282559,1981.0,1980.9,35.715524]
[1742686915638,2.58835133,1981.3,1980.9,40.763734]
[1742686915973,2.58835133,1981.2,1980.9,37.05792]
[1742686916173,2.7594901,1981.2,1980.9,37.05792]
[1742686921177,2.7594901,1981.2,1981.0,5.04791]
[1742686921852,2.7594901,1981.2,1980.9,32.00971]
[1742686922040,2.58835133,1981.1,1980.9,31.74521]
[1742686922476,0.17160473,1981.0,1980.9,31.74521]
[1742686923455,2.75995606,1981.0,1980.9,26.697]
[1742686933195,5.82497,1980.8,1980.4,5.04926]
[1742686933490,2.58835133,1980.6,1980.4,5.04926]
[1742686933694,2.75830375,1980.7,1980.4,5.04926]
[1742686933863,2.58835133,1980.7,1980.4,5.04926]
[1742686934225,2.75830375,1980.6,1980.4,5.04926]
[1742686934491,2.75830375,1980.6,1980.4,8.728157]
[1742686936654,2.58835133,1980.5,1980.3,26.69]
[1742686936854,7.63783133,1980.4,1980.3,26.69]
[1742686937168,7.80778375,1980.4,1980.3,26.69]
[1742686937670,8.58418375,1980.4,1980.3,26.69]
[1742686938044,9.94754512,1980.4,1980.3,26.69]
[1742686938896,5.05088,1979.9,1979.7,26.691]
[1742686939128,2.75550688,1979.8,1979.7,26.691]
[1742686939834,0.16715555,1979.8,1979.7,31.74227]
[1742686940191,2.58835133,1980.0,1979.7,31.74227]
[1742686940505,2.58835133,1980.0,1979.7,35.448074]
[1742686940706,2.58835133,1980.3,1980.0,5.0505]
[1742686940900,2.58835133,1980.3,1979.9,0.2645]
[1742686940901,2.58835133,1980.3,1980.1,5.05019]
[1742686941117,2.58835133,1980.3,1980.0,5.05044]
[1742686941513,2.58835133,1980.2,1980.0,5.05044]
[1742686941736,2.58835133,1980.2,1979.9,5.31523]
[1742686942325,2.58835133,1980.1,1979.8,5.05095]
[1742686942731,7.63862133,1980.1,1979.7,35.712504]
[1742686943132,5.05027,1980.1,1979.7,35.712504]
[1742686943930,5.05027,1980.1,1979.7,26.9555]
[1742686944134,5.05061,1980.0,1979.7,26.9555]
[1742686944532,5.05061,1980.0,1979.7,32.00673]
[1742686944719,0.14917449,1979.9,1979.7,32.00676]
[1742686945038,5.05027,1980.1,1979.7,32.00676]
[1742686945196,0.14917449,1979.8,1979.7,32.00676]
[1742686945396,5.05059,1980.0,1979.7,32.00676]
[1742686945899,0.14917449,1979.9,1979.7,32.00676]
[1742686946337,0.14917449,1979.9,1979.7,35.207326]
[1742686946631,5.05028,1980.1,1979.8,5.05101]
[1742686946995,5.05028,1980.1,1979.7,35.207356]
[1742686947433,5.05061,1980.0,1979.7,26.691]
[1742686948230,5.05061,1980.0,1979.7,31.74225]
[1742686948419,5.87511,1980.1,1979.7,31.74225]
[1742686949603,5.05064,1980.0,1979.7,26.691]
[1742686950711,5.87513,1980.1,1979.7,31.74215]
[1742686951114,10.92558,1980.1,1979.7,31.74215]
[1742686951644,5.0506,1980.0,1979.7,26.691]
[1742686952841,9.36790363,1980.2,1979.8,5.31536]
[1742686953138,5.05007,1980.2,1979.8,10.36626]
[1742686953935,10.10025,1980.2,1979.8,5.31536]
[1742686954141,9.36790363,1980.2,1979.8,5.31536]
[1742686956632,14.41700363,1980.4,1979.8,0.2645]
[1742686956852,9.36732363,1980.4,1980.0,5.05041]
[1742686957018,9.36732363,1980.4,1980.1,26.701]
[1742686957434,5.04985,1980.3,1980.1,26.701]
[1742686958941,5.87479,1980.2,1980.1,26.701]
[1742686959107,10.19262363,1980.2,1980.1,26.701]
[1742686959307,11.71687099,1980.2,1980.1,26.701]
[1742686959800,11.86672505,1980.2,1980.1,26.701]
[1742686961832,5.05083,1979.9,1979.6,0.2645]
[1742686962038,5.05083,1979.9,1979.7,26.702]
[1742686962437,0.14985406,1979.8,1979.7,26.702]
[1742686968638,5.20086406,1979.8,1979.7,26.702]
[1742686970864,0.14985406,1979.8,1979.7,26.702]
[1742686974041,5.05079,1979.9,1979.7,26.702]
[1742686974256,0.14972656,1979.8,1979.7,26.702]
[1742686976783,5.05076,1979.9,1979.7,26.702]
[1742686976962,0.14972656,1979.8,1979.7,26.702]
[1742686980598,2.74094397,1979.8,1979.7,26.702]
[1742686980759,7.79195397,1979.8,1979.7,26.702]
[1742686983225,9.15721537,1979.8,1979.7,26.702]
[1742686983383,9.96711537,1979.8,1979.7,26.702]
[1742686985414,12.55833278,1979.8,1979.7,26.702]
[1742686985719,0.8099,1979.3,1979.0,26.706]
[1742686985927,2.59121741,1979.1,1979.0,26.706]
[1742686986081,7.64412741,1979.1,1979.0,26.706]
[1742686986423,7.79279212,1979.1,1979.0,26.706]
[1742686986585,0.14866471,1979.1,1979.0,26.706]
[1742686987394,15.23623449,1979.3,1979.0,26.706]
[1742686987713,0.14866471,1979.1,1979.0,26.706]
[1742686987918,10.18338449,1979.5,1979.0,29.881907]
[1742686988088,0.14866471,1979.1,1979.0,34.934797]
[1742686988291,10.10441,1979.4,1979.0,34.934797]
[1742686988497,0.14866471,1979.1,1979.0,34.934797]
[1742686988807,0.14866471,1979.1,1979.0,34.934927]
[1742686988979,5.05231,1979.3,1979.0,34.934927]
[1742686989180,0.14866471,1979.1,1979.0,34.934927]
[1742686989483,5.05231,1979.3,1979.0,29.881907]
[1742686990123,0.14573296,1979.2,1979.0,29.881907]
[1742686991119,0.14573296,1979.2,1979.0,34.934917]
[1742686993721,0.14573296,1979.2,1979.0,29.881907]
[1742686994019,5.19830296,1979.2,1979.0,26.706]
[1742686994423,9.51980745,1979.2,1979.0,26.706]
[1742686994726,10.27230745,1979.2,1979.0,26.706]
[1742686995429,5.0528,1979.1,1979.0,26.706]
[1742686995786,5.19666328,1979.1,1979.0,26.706]
[1742686996627,0.14386328,1979.1,1979.0,26.706]
[1742686997195,0.14386328,1979.1,1979.0,34.42965]
[1742686997401,0.14386328,1979.1,1979.0,34.69415]
[1742686997619,5.05229,1979.3,1979.0,34.69415]
[1742686997791,0.14386328,1979.1,1979.0,32.02355]
[1742686997989,5.05229,1979.3,1979.0,32.02355]
[1742686998212,0.14386328,1979.1,1979.0,32.02355]
[1742686998422,9.37368449,1979.4,1979.0,32.02355]
[1742686998723,0.14386328,1979.1,1979.0,32.02355]
[1742686998887,9.37368449,1979.4,1979.0,35.731218]
[1742686999088,0.14386328,1979.1,1979.0,35.731218]
[1742686999287,9.37368449,1979.4,1979.0,35.731218]
[1742686999527,0.14386328,1979.1,1979.0,35.731218]
[1742686999699,9.37368449,1979.4,1979.0,35.731218]
[1742686999891,0.14386328,1979.1,1979.0,35.731218]
[1742687000094,9.37368449,1979.4,1979.0,35.731218]
[1742687000307,0.14420503,1979.1,1979.0,35.731218]
[1742687000521,9.37368449,1979.4,1979.1,5.05279]
[1742687000821,5.05157,1979.6,1979.3,0.2645]
[1742687000993,5.05148,1979.7,1979.3,5.31667]
[1742687001194,4.32150449,1979.8,1979.5,5.05168]
[1742687001407,5.05137,1979.7,1979.3,5.31675]
[1742687001700,10.10282,1979.7,1979.3,5.31675]
[1742687002427,9.37308449,1979.6,1979.3,0.2645]
[1742687002613,5.05204,1979.4,1979.0,37.07635]
[1742687002815,5.05204,1979.4,1979.0,32.02336]
[1742687003130,5.05196,1979.5,1979.1,5.05268]
[1742687003622,5.05196,1979.5,1979.1,8.760284]
[1742687004806,0.14509746,1979.4,1979.1,8.760284]
[1742687006327,0.14509746,1979.4,1979.1,13.812934]
[1742687006531,0.14509746,1979.4,1979.1,8.760254]
[1742687007039,0.14509746,1979.4,1979.2,5.05252]
[1742687007199,0.14509746,1979.4,1979.2,6.4337974]
[1742687011242,0.14509746,1979.4,1979.3,26.711]
[1742687018621,4.46660195,1979.4,1979.3,26.711]
[1742687018833,10.28793195,1979.4,1979.3,26.711]
[1742687019348,0.14509746,1979.4,1979.3,26.711]
[1742687020039,0.14509746,1979.4,1979.3,31.76329]
[1742687020349,5.05154,1979.6,1979.3,32.02779]
[1742687020520,0.14581988,1979.4,1979.3,26.9755]
[1742687020728,5.05154,1979.6,1979.3,26.9755]
[1742687021252,0.14581988,1979.5,1979.3,26.9755]
[1742687021917,0.14581988,1979.5,1979.3,26.711]
[1742687022255,0.14581988,1979.5,1979.4,5.31653]
[1742687022439,5.13240449,1980.1,1979.6,5.05144]
[1742687022647,5.05068,1980.0,1979.6,5.05144]
[1742687022950,10.10142,1980.0,1979.6,5.05144]
[1742687026554,9.37227449,1979.9,1979.6,5.05144]
[1742687026756,9.37227449,1979.9,1979.5,5.05177]
[1742687027256,9.37227449,1979.9,1979.5,10.10341]
[1742687027421,9.37227449,1979.9,1979.5,5.05164]
[1742687027622,9.37227449,1979.9,1979.5,10.10325]
[1742687027824,9.37227449,1979.9,1979.5,11.140025]
[1742687028739,9.37227449,1979.9,1979.6,5.0515]
[1742687028945,4.32150449,1979.9,1979.6,5.0515]
[1742687030558,4.32150449,1979.9,1979.7,26.708]
[1742687034827,0.13393199,1979.8,1979.7,26.708]
[1742687040931,5.05058,1980.0,1979.7,26.708]
[1742687041131,0.13546366,1979.8,1979.7,26.708]
[1742687042661,8.4521197,1980.1,1979.7,31.75927]
[1742687042967,0.13546366,1979.8,1979.7,31.75927]
[1742687043134,2.5909697,1980.0,1979.7,31.75927]
[1742687043333,0.13546366,1979.8,1979.7,31.75927]
[1742687043559,2.5909697,1980.0,1979.7,31.75927]
[1742687043746,0.13546366,1979.8,1979.7,31.75927]
[1742687044066,0.13546366,1979.8,1979.7,35.466776]
[1742687044462,2.5909697,1980.0,1979.7,35.466776]
[1742687044670,0.13546366,1979.8,1979.7,35.466776]
[1742687044962,2.5909697,1980.0,1979.7,35.466776]
[1742687045170,0.13546366,1979.8,1979.7,31.75927]
[1742687045337,7.6415297,1980.0,1979.7,31.75927]
[1742687045538,0.13546366,1979.8,1979.7,31.75927]
[1742687045764,7.6415297,1980.0,1979.7,31.75927]
[1742687046367,0.13546366,1979.9,1979.7,31.75927]
[1742687046570,0.13546366,1979.9,1979.7,35.5684872]
[1742687047930,0.13546366,1979.9,1979.8,5.05101]
[1742687048137,0.8038,1980.3,1980.0,5.05047]
[1742687048439,3.3947697,1980.3,1980.0,5.05047]
[1742687049280,0.8038,1980.3,1980.0,5.05047]
[1742687049588,0.8038,1980.3,1980.0,5.581967]
[1742687050077,0.13810116,1980.2,1980.0,5.581967]
[1742687051180,0.13810116,1980.2,1980.1,26.705]
[1742687054434,5.80159,1980.6,1980.1,32.01974]
[1742687054772,0.12829814,1980.5,1980.2,5.04985]
[1742687054979,0.12829814,1980.5,1980.2,5.55483492]
[1742687055480,0.12829814,1980.5,1980.1,31.75524]
[1742687055643,5.17769814,1980.5,1980.1,31.75524]
[1742687055974,5.17769814,1980.5,1980.1,31.75508]
[1742687056133,5.17769814,1980.5,1980.1,36.8052]
[1742687056833,5.17769814,1980.5,1980.1,31.75508]
[1742687057033,5.17769814,1980.5,1980.2,1.54175992]
[1742687057766,5.0494,1980.5,1980.2,1.54175992]
[1742687059292,10.09881,1980.5,1980.2,1.54175992]
[1742687059695,0.12829814,1980.4,1980.2,1.54175992]
[1742687061591,0.12829814,1980.4,1980.2,6.59172992]
[1742687061766,0.12829814,1980.4,1980.3,5.70890299]
[1742687061968,0.7525,1980.6,1980.3,5.70890299]
[1742687062287,0.7525,1980.6,1980.3,5.70882299]
[1742687064485,5.8015,1980.6,1980.3,0.65917299]
[1742687064865,0.13034174,1980.5,1980.3,0.65917299]
[1742687065173,5.17959174,1980.5,1980.3,0.65917299]
[1742687065376,5.17959174,1980.5,1980.1,36.80536]
[1742687065578,5.17959174,1980.5,1980.1,31.75515]
[1742687065791,5.17959174,1980.5,1980.2,5.04998]
[1742687066589,0.13034174,1980.5,1980.2,5.04998]
[1742687067492,0.13034174,1980.5,1980.3,5.04949]